bitfinex/quotes_ETHUSD_20251021
["timestamp","ask_amount","ask_price","bid_price","bid_amount"]
[1761086300749,2.55677022,3911.2,3909.1,4.179]
[1761086300949,2.55689868,3911.0,3909.4,2.5579022]
[1761086301153,1.5552,3910.9,3909.2,4.1705]
[1761086301452,1.5552,3911.1,3909.2,4.6316]
[1761086301654,2.55709305,3910.7,3909.2,4.0]
[1761086301872,2.55695619,3910.9,3909.2,4.0]
[1761086302073,2.55734258,3910.4,3909.2,4.0]
[1761086302247,1.5552,3910.3,3909.2,4.0]
[1761086302450,2.55736568,3910.3,3909.3,2.55799686]
[1761086302681,2.06208,3909.9,3908.2,2.55867104]
[1761086302979,3.0311215,3910.2,3908.3,3.01973933]
[1761086302980,3.0058752,3910.2,3908.3,3.01973933]
[1761086303281,0.6986544,3910.1,3907.8,4.177]
[1761086303586,1.5552,3909.7,3908.8,2.55830545]
[1761086303787,1.5552,3909.7,3907.9,0.4611]
[1761086303788,0.6734,3910.1,3907.9,0.4611]
[1761086304087,0.4493,3910.0,3908.0,0.46848853]
[1761086304289,2.55804198,3909.3,3908.2,2.55871381]
[1761086304449,2.55805906,3909.3,3908.2,2.55871381]
[1761086304645,0.4493,3909.5,3907.8,4.177]
[1761086304849,2.5581375,3909.1,3908.1,2.55875499]
[1761086305075,2.55805728,3909.3,3908.3,2.55865397]
[1761086305381,1.5552,3909.5,3908.5,2.55846962]
[1761086305594,2.5580017,3909.4,3908.3,2.55865582]
[1761086305775,2.5580017,3909.4,3908.4,2.55859042]
[1761086306088,1.5552,3909.5,3907.9,0.4429]
[1761086306248,2.55780642,3909.6,3907.9,0.02558919]
[1761086306249,0.4493,3909.3,3907.9,0.02558919]
[1761086306466,0.4493,3909.3,3907.8,4.177]
[1761086306851,2.55845489,3908.7,3907.8,6.73596535]
[1761086307103,2.55866819,3908.3,3907.8,4.177]
[1761086307457,2.55874781,3908.2,3907.8,4.177]
[1761086307882,3.01856126,3908.3,3907.8,4.177]
[1761086308083,2.55873092,3908.2,3907.8,4.177]
[1761086308256,0.4599,3908.2,3907.0,4.17]
[1761086308589,2.55839662,3908.7,3907.0,4.17]
[1761086308590,2.55908571,3907.7,3907.0,4.17]
[1761086308756,2.5592483,3907.4,3906.0,0.1815]
[1761086308957,0.0252544,3907.3,3906.2,4.168]
[1761086309290,1.5552,3907.2,3906.2,4.168]
[1761086309594,2.55951879,3907.0,3906.2,4.168]
[1761086309794,0.0252544,3907.1,3903.8,0.002]
[1761086309795,1.5804544,3906.9,3903.8,0.002]
[1761086309978,0.50688,3905.4,3903.8,0.002]
[1761086310289,2.56154102,3903.9,3903.8,0.002]
[1761086310451,3.23234102,3903.9,3903.8,0.002]
[1761086310653,4.81279542,3903.9,3903.8,0.002]
[1761086310856,5.31967542,3903.9,3903.8,0.002]
[1761086311051,5.29442102,3903.9,3903.8,0.002]
[1761086312069,2.5618035,3903.5,3903.0,0.002]
[1761086312291,5.0789835,3903.5,3903.0,0.002]
[1761086312663,5.1042379,3903.5,3903.0,0.002]
[1761086312860,5.1042379,3903.5,3898.9,0.1675]
[1761086312861,4.62486831,3902.0,3899.3,0.4429]
[1761086313064,8.28198831,3902.0,3900.0,2.5650931]
[1761086313362,6.67498,3902.0,3900.1,2.56618407]
[1761086313562,9.23776831,3902.0,3900.1,0.0021745]
[1761086314523,5.07376831,3902.0,3900.1,0.0021745]
[1761086314804,2.51098,3902.0,3900.1,0.0021745]
[1761086315311,0.2256,3903.0,3901.6,0.1835]
[1761086315456,0.2256,3903.0,3900.9,0.4429]
[1761086315657,0.50688,3902.9,3901.1,2.56337797]
[1761086315862,0.50688,3902.9,3900.9,0.4429]
[1761086316091,0.6583,3903.0,3900.9,0.4429]
[1761086316092,0.2256,3903.0,3900.9,0.4429]
[1761086316410,0.9648344,3902.9,3901.2,2.56330665]
[1761086316615,0.4626,3903.6,3901.2,2.56329462]
[1761086316763,0.4599,3903.5,3901.5,0.4429]
[1761086317497,0.2137,3903.9,3901.9,0.4695]
[1761086317793,0.50688,3903.5,3901.9,0.0266]
[1761086318107,4.16,3903.8,3901.9,0.4695]
[1761086318261,0.2137,3903.9,3902.0,0.02562788]
[1761086318466,0.4435,3904.6,3902.0,0.02562788]
[1761086318792,0.4435,3904.6,3902.1,0.4429]
[1761086319048,0.4435,3904.6,3903.0,2.5620763]
[1761086319295,0.4435,3904.6,3902.4,0.02562525]
[1761086319456,0.50688,3904.5,3902.5,0.6244]
[1761086319657,0.4435,3904.6,3902.5,0.6244]
[1761086319863,0.4435,3904.6,3903.2,2.56199858]
[1761086320065,1.5552,3903.9,3902.0,0.1815]
[1761086320315,2.56201486,3903.2,3901.9,0.0266]
[1761086320462,0.50688,3902.5,3901.9,0.0266]
[1761086320805,1.5552,3902.8,3901.9,0.0266]
[1761086320806,2.06208,3902.8,3901.9,0.0266]
[1761086321097,0.70748,3902.0,3901.9,0.0266]
[1761086321296,0.50688,3902.6,3901.9,0.0266]
[1761086321598,2.06208,3902.2,3901.9,0.0266]
[1761086321770,0.50688,3902.1,3901.9,0.0266]
[1761086321969,4.156,3902.3,3901.9,0.0266]
[1761086322171,2.06208,3902.2,3901.9,0.0266]
[1761086322400,0.4411,3902.8,3901.9,0.0266]
[1761086322574,0.50688,3902.4,3901.9,0.0266]
[1761086322773,2.06208,3902.0,3901.9,0.0266]
[1761086323099,1.5552,3902.0,3901.9,0.0266]
[1761086323275,5.06596831,3902.0,3901.9,0.0266]
[1761086323596,2.50318,3902.0,3901.9,0.0266]
[1761086323972,1.5552,3902.0,3901.9,0.0266]
[1761086324864,0.4411,3903.1,3901.9,0.0266]
[1761086325187,0.2303,3903.8,3901.9,0.0266]
[1761086325564,0.2303,3903.8,3902.3,2.56258906]
[1761086325765,0.2303,3904.3,3902.2,2.56265696]
[1761086326002,0.2303,3904.3,3902.0,0.4429]
[1761086326206,0.4117,3904.2,3902.1,2.56272263]
[1761086326499,0.4117,3904.2,3902.0,0.4429]
[1761086326500,0.50688,3904.1,3902.7,2.5622847]
[1761086326724,0.4117,3904.2,3902.0,0.4429]
[1761086326924,2.56102806,3904.7,3902.1,0.02562722]
[1761086327129,2.56102806,3904.7,3902.0,0.4429]
[1761086327130,0.2303,3904.4,3902.2,0.02562656]
[1761086327423,0.4117,3904.9,3902.4,2.56252562]
[1761086327607,0.4117,3904.9,3902.5,0.02562459]
[1761086327808,0.4117,3904.9,3902.6,2.5623943]
[1761086328126,0.50688,3904.8,3903.6,2.56169642]
[1761086328424,0.4117,3904.9,3903.7,2.56161973]
[1761086328597,0.4117,3904.9,3903.5,2.56176586]
[1761086328927,0.4117,3904.9,3903.0,0.4429]
[1761086329136,0.0252544,3904.8,3903.7,2.56166644]
[1761086329418,6.70758653,3905.4,3903.0,0.4429]
[1761086329419,1.9669,3904.7,3903.0,0.4429]
[1761086329619,0.4117,3904.7,3903.4,2.56181738]
[1761086329797,0.4117,3904.7,3903.5,2.56178736]
[1761086330120,0.4117,3904.7,3903.0,0.4429]
[1761086330346,0.4117,3904.7,3903.0,0.02562131]
[1761086330524,2.56121955,3904.4,3902.5,0.1815]
[1761086330827,0.4117,3904.7,3902.6,0.46852394]
[1761086331030,0.4117,3905.2,3902.6,0.46852394]
[1761086331191,0.4117,3905.2,3904.0,2.56146053]
[1761086331522,0.4117,3905.2,3903.9,2.56153233]
[1761086331727,0.4117,3905.2,3904.0,0.1675]
[1761086331926,0.4117,3905.2,3903.6,0.1675]
[1761086331927,0.001,3904.6,3903.6,0.1675]
[1761086332127,0.001,3904.6,3903.5,2.5618035]
[1761086332425,0.001,3904.6,3903.4,0.1675]
[1761086332728,0.2303,3904.5,3903.1,2.56204635]
[1761086332910,0.2303,3904.5,3902.8,2.56226299]
[1761086333133,0.001,3904.6,3902.9,0.02562197]
[1761086333292,0.001,3904.6,3902.9,0.4429]
[1761086333730,0.001,3904.6,3903.0,2.56213169]
[1761086333926,0.001,3904.6,3904.0,2.56142529]
[1761086334136,0.001,3904.6,3903.9,2.56152111]
[1761086334338,0.001,3904.6,3902.6,2.56234069]
[1761086334339,0.001,3904.6,3903.7,0.1675]
[1761086334837,0.001,3904.6,3904.1,2.56139632]
[1761086335037,0.001,3904.6,3904.1,2.561405]
[1761086335242,0.001,3904.6,3904.3,2.56126626]
[1761086335542,0.001,3904.6,3903.7,0.1675]
[1761086335744,0.001,3904.6,3904.4,2.56116484]
[1761086336042,0.001,3904.6,3904.4,2.56120723]
[1761086336611,0.001,3904.6,3903.7,0.1675]
[1761086336809,0.001,3904.6,3904.1,2.56139881]
[1761086337009,0.001,3904.6,3903.7,0.6116]
[1761086337210,0.001,3904.6,3904.5,2.56114739]
[1761086337461,0.001,3904.6,3904.5,3.03085886]
[1761086337952,0.001,3904.6,3904.5,17.50524739]
[1761086339710,0.001,3904.6,3904.5,19.56732739]
[1761086339939,0.001,3904.6,3904.5,23.69832739]
[1761086340332,0.001,3904.6,3904.5,23.19144739]
[1761086340953,0.001,3905.0,3904.9,2.56088504]
[1761086341244,0.1942,3908.4,3905.2,0.50688]
[1761086341445,0.1942,3908.4,3905.4,2.06208]
[1761086341650,0.65819958,3909.4,3905.4,2.06208]
[1761086341651,0.1966,3909.1,3907.2,2.55937755]
[1761086341851,0.4605,3909.6,3908.6,2.55845753]
[1761086342025,0.4605,3909.6,3907.4,2.55924655]
[1761086342026,0.4605,3909.6,3908.3,4.128]
[1761086342227,0.2076,3908.4,3907.2,0.179]
[1761086342527,0.99295335,3909.6,3907.3,14.52559312]
[1761086342729,0.4579,3909.5,3908.1,2.55877341]
[1761086342934,0.1967,3909.7,3907.4,2.55924655]
[1761086342935,0.1967,3909.7,3908.2,0.02558722]
[1761086343234,0.4579,3909.6,3908.4,2.55857946]
[1761086343436,0.0252544,3909.5,3908.5,14.5]
[1761086343653,1.5552,3909.5,3908.5,14.5]
[1761086343957,0.4579,3909.6,3907.4,2.55918473]
[1761086343958,0.214,3908.6,3907.4,2.55918473]
[1761086344249,0.214,3908.6,3907.2,4.125]
[1761086344552,3.22406592,3908.6,3907.5,14.5]
[1761086344735,0.214,3908.6,3907.5,14.5]
[1761086344940,0.6656,3908.6,3907.5,14.5]
[1761086345622,0.4516,3909.3,3907.7,2.5590183]
[1761086345971,0.1967,3909.7,3907.8,0.02558984]
[1761086346250,0.1967,3909.7,3907.7,2.55905008]
[1761086346460,0.1967,3909.7,3908.4,14.5]
[1761086346637,0.1967,3909.7,3908.6,2.55846082]
[1761086346945,0.1993,3910.0,3908.7,2.558379]
[1761086347150,0.1993,3910.0,3908.7,2.55833298]
[1761086347333,0.0252544,3909.9,3908.8,14.5]
[1761086348051,0.0252544,3909.9,3908.8,17.05827675]
[1761086348224,1.5804544,3909.9,3908.8,14.5]
[1761086348561,0.449,3909.9,3908.8,17.05831756]
[1761086348869,3.03187025,3909.9,3908.8,14.5]
[1761086349016,0.50688,3909.7,3908.8,14.5]
[1761086349234,2.55774715,3909.7,3908.8,14.5]
[1761086349435,0.449,3909.6,3908.8,14.5]
[1761086349668,2.5581404,3909.1,3908.8,14.5]
[1761086349841,0.50688,3909.5,3908.0,4.115]
[1761086350042,0.50688,3909.4,3908.0,6.67383671]
[1761086350255,0.50688,3909.1,3908.0,6.67383671]
[1761086350464,0.50688,3909.1,3908.1,14.5]
[1761086350669,0.449,3909.1,3908.1,14.5]
[1761086351040,0.50788,3909.7,3908.6,2.5584034]
[1761086351376,0.001,3909.7,3908.0,6.67378921]
[1761086351537,2.55800624,3909.3,3908.1,2.55876651]
[1761086351740,2.55800624,3909.3,3908.0,4.115]
[1761086351741,1.5552,3909.3,3908.7,14.5]
[1761086351932,0.449,3909.6,3908.7,14.5]
[1761086352337,0.449,3909.6,3908.8,2.55832713]
[1761086352949,0.449,3909.6,3908.7,14.5]
[1761086353267,0.449,3909.6,3908.7,17.05839053]
[1761086353467,0.001,3909.7,3909.0,2.55819763]
[1761086353669,0.001,3909.7,3908.7,11.5]
[1761086353982,0.001,3909.7,3908.6,6.66740794]
[1761086353983,0.001,3909.7,3908.8,0.46968329]
[1761086354278,0.001,3909.7,3908.7,2.55834625]
[1761086354439,0.0262544,3909.7,3908.7,2.55833765]
[1761086354639,0.0262544,3909.7,3909.1,14.5]
[1761086354870,0.001,3909.7,3909.1,14.5]
[1761086355040,0.0262544,3909.7,3909.1,14.5]
[1761086355242,0.001,3909.7,3909.1,14.5]
[1761086355441,0.001,3909.7,3909.4,2.55787737]
[1761086355660,0.001,3909.7,3909.1,14.5]
[1761086356444,0.001,3909.7,3909.1,18.604]
[1761086356901,0.001,3909.7,3909.1,21.16212345]
[1761086357111,0.001,3909.7,3909.1,18.604]
[1761086357282,0.001,3909.7,3909.6,2.55780642]
[1761086357501,0.001,3909.7,3909.6,7.10490642]
[1761086357695,0.001,3909.7,3909.6,21.60490642]
[1761086357899,0.001,3909.7,3909.6,21.16080642]
[1761086358586,0.001,3909.7,3909.6,21.60490642]
[1761086360135,0.001,3909.7,3909.6,23.66698642]
[1761086360285,0.001,3912.3,3911.8,2.55636791]
[1761086360785,0.001,3912.3,3911.8,2.58193158]
[1761086360992,0.001,3912.3,3911.8,3.02926791]
[1761086361210,0.001,3912.3,3911.8,17.52926791]
[1761086362303,0.001,3912.3,3911.8,14.5]
[1761086362928,2.98020256,3911.9,3911.8,14.5]
[1761086363107,1.9791,3911.9,3909.1,0.1733]
[1761086363309,1.9791,3911.9,3909.2,0.535]
[1761086363310,0.50688,3911.7,3909.2,0.535]
[1761086363518,1.5552,3910.9,3909.2,0.535]
[1761086363708,1.5552,3910.3,3909.3,14.5]
[1761086363903,2.55758214,3910.0,3909.3,14.5]
[1761086364333,2.55765883,3909.9,3909.3,14.5]
[1761086364854,2.55770016,3909.8,3909.3,14.5]
[1761086365357,2.55749848,3910.1,3909.4,0.1733]
[1761086365560,0.0252544,3910.0,3909.3,14.5]
[1761086365853,2.55762498,3909.9,3909.3,14.5]
[1761086366080,2.55754518,3910.0,3909.3,17.05799773]
[1761086366580,0.442,3911.0,3909.4,0.1733]
[1761086366878,0.1904,3910.9,3909.9,2.55755922]
[1761086367074,0.1904,3910.9,3910.0,4.086]
[1761086367374,0.2222,3911.6,3910.0,4.086]
[1761086367577,1.5552,3911.1,3910.1,0.02557479]
[1761086367720,0.6291,3911.6,3910.2,14.5]
[1761086367924,0.4069,3911.5,3910.2,14.5]
[1761086368132,1.9621,3911.5,3910.2,14.5]
[1761086368336,2.55734568,3910.4,3910.2,14.5]
[1761086369020,2.55734854,3910.3,3910.2,14.5]
[1761086369845,2.55747934,3910.1,3910.0,4.086]
[1761086370064,0.4321544,3910.2,3909.6,0.002]
[1761086370224,2.557741,3909.7,3909.6,0.002]
[1761086370567,5.08123347,3909.7,3909.6,0.002]
[1761086370722,2.55793727,3909.4,3909.3,0.002]
[1761086370919,2.55793727,3909.4,3908.9,0.002]
[1761086370920,2.55819902,3909.0,3908.9,0.002]
[1761086371127,2.55819902,3909.0,3907.6,14.5]
[1761086371128,2.55905008,3907.7,3907.6,14.5]
[1761086371321,2.75715008,3907.7,3907.1,4.079]
[1761086371621,0.0252544,3907.6,3906.7,4.079]
[1761086371831,1.5552,3907.9,3906.8,17.05958677]
[1761086372048,2.55906546,3907.7,3906.8,17.05958677]
[1761086372240,2.55926348,3907.4,3906.8,14.5]
[1761086372441,2.55939479,3907.2,3906.8,14.5]
[1761086372663,2.55948118,3907.1,3906.6,4.078]
[1761086372833,2.55948118,3907.1,3906.2,2.56002446]
[1761086372834,2.55948227,3907.1,3906.2,2.56002446]
[1761086373028,2.55965551,3906.8,3906.1,4.077]
[1761086373274,0.2233,3907.2,3906.1,4.077]
[1761086373275,0.2233,3907.2,3906.3,14.5]
[1761086373434,2.5593018,3907.4,3906.4,2.55990169]
[1761086373632,2.5593018,3907.4,3906.5,2.55983089]
[1761086374129,0.2233,3907.3,3906.3,14.5]
[1761086374357,0.2233,3907.3,3906.5,2.55978074]
[1761086374565,0.2233,3907.3,3906.3,17.0599159]
[1761086374859,0.2233,3907.3,3906.3,14.5]
[1761086374860,2.55951637,3907.0,3906.3,14.5]
[1761086375285,3.02558485,3906.9,3906.3,14.5]
[1761086375444,2.55985398,3906.5,3906.3,14.5]
[1761086375830,3.00055398,3906.5,3906.3,14.5]
[1761086376183,0.4407,3906.5,3906.3,14.5]
[1761086376482,1.5552,3906.9,3906.3,14.5]
[1761086376483,0.2233,3907.6,3906.3,14.5]
[1761086376954,1.5552,3907.2,3906.3,14.5]
[1761086377161,2.55951127,3907.0,3906.3,14.5]
[1761086377338,1.9959,3907.2,3906.3,14.5]
[1761086377339,0.4407,3907.2,3906.3,17.05995554]
[1761086377539,1.9959,3907.2,3906.3,14.5]
[1761086377758,2.55937825,3907.2,3906.4,2.55990169]
[1761086378060,2.5593845,3907.2,3906.4,2.55983749]
[1761086378228,2.5593845,3907.2,3906.1,6.63703517]
[1761086378229,2.55945954,3907.1,3906.1,4.077]
[1761086378428,4.11457211,3907.3,3906.1,6.63709288]
[1761086378664,4.77836281,3907.6,3906.1,4.077]
[1761086378665,0.0252544,3907.2,3906.1,4.077]
[1761086378867,2.55932866,3907.3,3906.4,2.55983799]
[1761086379073,0.0252544,3907.2,3906.2,14.5]
[1761086379298,2.55978201,3906.6,3906.1,4.077]
[1761086379708,2.55978201,3906.6,3906.2,14.5]
[1761086380068,0.4407,3907.0,3906.2,14.5]
[1761086380687,2.55990715,3906.4,3906.2,14.5]
[1761086380884,2.55996723,3906.3,3906.2,14.5]
[1761086381365,0.4407,3906.3,3905.5,4.066]
[1761086381579,1.5552,3906.7,3904.5,0.184]
[1761086381871,2.56020876,3906.0,3905.1,2.56075055]
[1761086382066,2.56020876,3906.0,3905.2,4.065]
[1761086382292,2.56036213,3905.7,3905.2,4.065]
[1761086382494,2.56028011,3905.9,3905.2,4.065]
[1761086382815,2.56029969,3905.8,3905.2,4.065]
[1761086383103,2.56023859,3905.9,3905.2,4.065]
[1761086383498,0.4659544,3906.3,3905.2,4.065]
[1761086383676,2.5604117,3905.7,3905.2,4.065]
[1761086384009,0.0252544,3905.9,3905.2,4.065]
[1761086384313,2.56026042,3905.9,3905.2,4.065]
[1761086384609,0.2108,3905.9,3905.2,4.065]
[1761086384809,0.2108,3905.9,3904.6,0.02561081]
[1761086384968,1.5552,3906.0,3904.6,0.02561081]
[1761086385170,1.5552,3906.1,3904.7,0.4645]
[1761086385370,1.5552,3906.4,3905.3,2.56059067]
[1761086385371,2.55996723,3906.3,3905.3,2.56059067]
[1761086385571,0.436,3907.4,3905.4,4.55010557]
[1761086385801,0.436,3907.3,3905.5,4.5245]
[1761086386002,2.55972571,3906.7,3905.8,2.56024195]
[1761086386307,0.436,3907.3,3906.3,2.55995818]
[1761086386605,0.436,3907.3,3905.9,4.06]
[1761086386818,2.55976568,3906.7,3905.9,4.06]
[1761086387023,0.436,3907.3,3905.9,4.06]
[1761086387024,2.58503332,3906.6,3905.9,4.06]
[1761086387387,0.0252544,3906.6,3905.9,6.62021502]
[1761086387819,2.58504427,3906.6,3905.9,4.06]
[1761086388031,1.5552,3906.8,3906.0,2.56014073]
[1761086388329,1.5552,3907.4,3905.9,4.5265]
[1761086388502,2.55957576,3906.9,3906.0,2.56010202]
[1761086388700,2.55965815,3906.8,3906.0,2.56010202]
[1761086389090,0.0252544,3906.7,3905.9,6.62222]
[1761086389326,2.55977064,3906.6,3905.9,4.062]
[1761086389488,2.56016385,3906.0,3905.9,4.062]
[1761086389693,0.436,3906.5,3905.9,4.062]
[1761086390013,2.56013735,3906.1,3905.9,4.062]
[1761086390518,2.55998042,3906.3,3905.9,4.062]
[1761086390519,3.02141825,3906.0,3905.9,4.062]
[1761086390719,3.02141825,3906.0,3905.9,0.002]
[1761086390928,2.99616385,3906.0,3905.9,0.002]
[1761086391137,4.76886385,3906.0,3905.9,0.002]
[1761086392222,5.30099825,3906.0,3905.9,0.002]
[1761086392421,5.27574385,3906.0,3905.9,0.002]
[1761086392623,4.76886385,3906.0,3905.9,0.002]
[1761086392808,8.81886385,3906.0,3905.9,0.002]
[1761086393395,9.32574385,3906.0,3905.9,0.002]
[1761086393814,4.76886385,3906.0,3905.9,0.002]
[1761086394097,8.81886385,3906.0,3905.9,0.002]
[1761086394722,9.32574385,3906.0,3905.9,0.002]
[1761086395434,9.32374385,3906.0,3905.9,0.002]
[1761086396258,5.27574385,3906.0,3905.9,0.002]
[1761086396462,9.32074385,3906.0,3905.9,0.002]
[1761086396826,9.31974385,3906.0,3905.9,0.002]
[1761086397765,9.31455388,3906.0,3905.9,0.002]
[1761086399251,4.11237388,3906.0,3905.9,0.002]
[1761086399452,8.15537388,3906.0,3905.9,0.002]
[1761086399635,4.11237388,3906.0,3905.9,0.002]
[1761086400244,4.54397388,3906.0,3905.9,0.002]
[1761086400756,1.5552,3906.0,3905.9,0.002]
[1761086400971,4.11536385,3906.0,3905.9,0.002]
[1761086401165,1.5552,3906.0,3905.9,0.002]
[1761086401366,0.40154053,3906.9,3905.9,0.4554]
[1761086401567,1.5552,3906.4,3905.9,0.4554]
[1761086401866,2.56014647,3906.1,3905.9,0.002]
[1761086402073,1.5552,3906.4,3905.9,0.002]
[1761086402231,2.55834924,3908.8,3905.9,0.002]
[1761086402232,2.56009674,3906.2,3905.9,0.002]
[1761086402430,0.4148,3906.7,3905.9,0.002]
[1761086402668,1.5552,3906.5,3905.9,0.002]
[1761086402870,0.50688,3906.6,3905.9,0.002]
[1761086402871,0.66996613,3907.3,3906.6,0.1795]
[1761086403034,0.66996613,3908.3,3906.7,0.02559705]
[1761086403232,1.10600857,3908.5,3907.6,0.176]
[1761086403233,0.53770398,3908.2,3907.6,0.176]
[1761086403433,0.53770398,3908.4,3907.7,0.4534]
[1761086403634,0.66996613,3909.2,3907.7,0.4534]
[1761086403838,0.2368,3909.4,3908.5,2.55852624]
[1761086403839,0.5377917,3909.1,3908.5,2.55852624]
[1761086404178,0.40131343,3909.7,3907.7,4.034]
[1761086404179,0.2368,3909.2,3907.7,4.034]
[1761086404361,0.2368,3909.2,3907.3,0.176]
[1761086404362,0.4087,3908.8,3907.3,0.176]
[1761086404540,2.55906001,3907.7,3907.3,0.176]
[1761086404868,0.5321344,3908.7,3907.3,0.176]
[1761086404869,0.50688,3908.7,3907.3,0.176]
[1761086405068,0.4087,3908.8,3907.3,0.6294]
[1761086405370,2.55900252,3907.8,3907.3,0.176]
[1761086405542,0.2024,3908.2,3907.3,0.176]
[1761086405937,2.55890617,3908.0,3907.3,0.176]
[1761086406173,4.4376,3908.4,3907.4,0.4534]
[1761086406174,1.5552,3908.3,3907.4,0.4534]
[1761086406358,1.7002,3908.3,3907.3,0.176]
[1761086406562,0.145,3908.3,3907.3,0.176]
[1761086406873,2.55905009,3907.7,3906.8,0.4534]
[1761086407035,2.55913476,3907.6,3906.8,3.0130386]
[1761086407240,2.55919563,3907.5,3906.8,0.4534]
[1761086407476,2.55912239,3907.6,3906.8,0.4534]
[1761086407677,0.50688,3908.5,3907.7,0.176]
[1761086407853,2.55909977,3907.7,3906.8,0.4534]
[1761086408041,0.1482,3908.3,3906.8,0.4534]
[1761086408247,0.1482,3908.3,3906.6,0.1795]
[1761086408248,2.55949957,3907.1,3906.6,0.1795]
[1761086408565,2.5594767,3907.1,3906.6,0.1795]
[1761086408767,2.5594527,3907.1,3906.6,0.6329]
[1761086409165,4.1732,3908.3,3906.8,2.55958915]
[1761086409342,2.55900671,3907.8,3906.7,2.55969758]
[1761086409671,0.5364296,3908.2,3906.6,0.1795]
[1761086409672,0.0252544,3907.7,3906.6,0.1795]
[1761086409967,2.55905294,3907.7,3906.6,2.73925243]
[1761086410171,0.0252544,3907.6,3906.6,0.1795]
[1761086410348,2.55912016,3907.6,3906.6,0.1795]
[1761086410541,0.0252544,3907.5,3906.1,0.176]
[1761086410742,0.50688,3908.2,3906.1,0.176]
[1761086410743,0.4603,3907.6,3906.1,2.73609575]
[1761086410943,0.0252544,3907.5,3906.1,0.176]
[1761086411144,2.55924655,3907.4,3906.1,0.176]
[1761086411475,9.45108271,3908.0,3906.1,0.176]
[1761086411476,0.81816613,3908.3,3906.2,0.02560032]
[1761086411661,1.5552,3908.0,3906.1,0.6294]
[1761086411859,1.5552,3907.6,3906.6,2.55974927]
[1761086412061,0.0252544,3907.5,3906.2,0.4534]
[1761086412262,2.55930383,3907.4,3906.3,2.55995492]
[1761086412573,1.5552,3907.6,3906.4,2.5598611]
[1761086412770,1.5552,3907.6,3906.2,0.4534]
[1761086412771,2.55915045,3907.6,3906.2,0.4534]
[1761086412977,2.55931362,3907.3,3906.2,2.55998426]
[1761086413156,2.55931362,3907.3,3906.3,2.5599499]
[1761086413352,2.55931362,3907.3,3906.2,2.5600174]
[1761086413554,2.58456802,3907.3,3906.3,6.41996342]
[1761086413765,1.5804544,3907.3,3906.3,6.41996342]
[1761086413963,0.4603,3907.8,3906.4,4.3134]
[1761086414170,0.1482,3908.3,3906.5,0.02559836]
[1761086414395,0.53631499,3908.7,3907.7,0.1778]
[1761086414682,2.55927573,3908.9,3907.8,4.49598984]
[1761086414683,0.001,3908.9,3907.8,4.49598984]
[1761086414890,0.001,3908.9,3907.8,4.4704]
[1761086415102,0.001,3908.9,3908.2,2.55867854]
[1761086415380,0.001,3908.9,3907.9,0.4534]
[1761086415549,0.001,3908.9,3908.1,2.55872665]
[1761086415749,0.001,3908.9,3908.2,2.55870066]
[1761086416183,0.001,3908.9,3908.0,3.01225279]
[1761086416184,0.001,3908.9,3908.4,2.55857222]
[1761086416387,0.001,3908.9,3908.1,2.55872682]
[1761086416747,0.001,3908.9,3908.3,2.55860034]
[1761086416966,0.001,3908.9,3907.8,4.017]
[1761086417189,2.55839147,3908.8,3907.8,6.57598397]
[1761086417346,0.001,3908.9,3908.1,2.55877473]
[1761086417681,0.001,3908.9,3908.0,2.55884546]
[1761086418046,0.001,3908.9,3907.8,4.4704]
[1761086418242,2.55838291,3908.8,3907.8,4.017]
[1761086418482,2.55857561,3908.5,3907.8,4.017]
[1761086418680,2.58365669,3908.7,3907.8,4.017]
[1761086418981,0.0252544,3908.7,3907.8,4.017]
[1761086419184,2.55878244,3908.2,3907.2,2.73715926]
[1761086419479,2.55864958,3908.4,3907.4,2.5591964]
[1761086419681,2.55874593,3908.2,3907.4,2.5591964]
[1761086419980,2.55874542,3908.2,3907.2,0.1778]
[1761086420185,2.55890655,3908.0,3907.2,0.1778]
[1761086420479,2.55885754,3908.0,3907.2,0.1778]
[1761086420680,0.1482,3908.1,3907.2,0.1778]
[1761086420983,2.55874261,3908.2,3907.4,2.55924236]
[1761086421284,2.55874261,3908.2,3907.2,3.18557642]
[1761086421285,0.001,3909.3,3907.5,0.02559181]
[1761086421484,0.001,3909.3,3908.8,0.1778]
[1761086421872,0.001,3909.3,3908.8,0.6262]
[1761086422272,0.001,3909.3,3908.8,3.18452992]
[1761086422452,0.001,3909.3,3908.8,0.1778]
[1761086422799,0.2265,3909.1,3908.4,4.006]
[1761086422950,1.5552,3909.2,3908.4,4.006]
[1761086423152,4.11327071,3909.2,3908.5,0.4484]
[1761086423379,1.5562,3909.3,3908.5,0.4484]
[1761086423755,0.001,3909.3,3908.5,0.4484]
[1761086423950,0.001,3909.3,3908.6,2.55846082]
[1761086424420,0.001,3909.3,3908.6,0.4429]
[1761086424636,0.001,3909.3,3908.6,3.00134655]
[1761086425138,0.001,3909.3,3908.7,2.55838936]
[1761086425416,0.001,3909.3,3908.7,2.55835281]
[1761086425820,0.001,3909.3,3908.8,2.55832992]
[1761086426031,0.001,3909.3,3908.8,3.00122992]
[1761086426235,0.001,3909.3,3909.2,2.55806814]
[1761086426525,0.001,3909.3,3909.2,6.55606814]
[1761086426691,0.001,3909.7,3909.6,2.55780642]
[1761086427024,0.001,3909.7,3909.6,3.00070642]
[1761086429329,0.001,3909.7,3909.6,3.50758642]
[1761086430550,0.001,3909.7,3909.6,3.00070642]
[1761086430838,0.001,3909.7,3907.5,3.991]
[1761086430839,0.4385,3909.7,3907.5,3.991]
[1761086430991,1.5552,3909.3,3908.0,0.6207]